bitfinex/quotes_ETHUSD_20250215
["timestamp","ask_amount","ask_price","bid_price","bid_amount"]
[1739620181598,8.42489,2706.9,2706.4,0.7788]
[1739620182191,4.73054,2706.9,2706.4,0.7788]
[1739620182349,8.4249,2706.9,2706.4,0.7788]
[1739620182703,4.73054,2706.9,2706.4,0.7788]
[1739620182853,8.42488,2706.9,2706.4,0.7788]
[1739620183397,4.73054,2706.9,2706.4,0.7788]
[1739620183554,0.34409962,2706.8,2706.4,0.7788]
[1739620184600,4.03849962,2706.8,2706.4,0.7788]
[1739620184771,0.34409962,2706.7,2706.4,0.7788]
[1739620186054,0.34409962,2706.7,2706.4,4.47372]
[1739620186616,0.34409962,2706.6,2706.4,4.47367]
[1739620186930,0.34409962,2706.6,2706.5,4.5137]
[1739620187900,0.34409962,2706.6,2706.5,0.8189]
[1739620188230,4.03824962,2707.0,2706.5,0.8189]
[1739620188825,0.34409962,2707.0,2706.5,0.8189]
[1739620189033,3.69428,2706.9,2706.5,0.8189]
[1739620189526,4.03837962,2706.9,2706.5,0.8189]
[1739620189823,0.34409962,2706.9,2706.5,0.8189]
[1739620190030,0.34409962,2706.9,2706.6,3.69466]
[1739620190597,0.34409962,2706.8,2706.6,3.69466]
[1739620190797,0.34409962,2706.8,2706.7,4.51343]
[1739620191193,0.34409962,2706.8,2706.7,9.5316959]
[1739620191390,0.34409962,2706.8,2706.7,8.7127959]
[1739620191595,0.34409962,2706.8,2706.7,12.09426447]
[1739620193314,8.294,2707.2,2706.8,3.69426]
[1739620193811,8.294,2707.2,2707.0,0.8189]
[1739620194141,8.294,2707.2,2707.0,5.8371659]
[1739620194435,4.46516,2707.5,2707.0,5.8371659]
[1739620194737,8.15869,2707.5,2707.0,5.8371659]
[1739620194937,3.69359,2707.4,2707.0,5.8371659]
[1739620195235,3.69379,2707.3,2707.0,5.8371659]
[1739620195834,4.03755863,2707.3,2707.0,5.8371659]
[1739620196036,0.34376863,2707.3,2707.0,5.8371659]
[1739620196393,4.03749863,2707.3,2707.0,5.8371659]
[1739620197343,0.34376863,2707.3,2707.0,5.8371659]
[1739620197542,0.34376863,2707.3,2707.0,6.79030749]
[1739620198039,3.69364,2707.4,2707.0,6.79030749]
[1739620199442,3.69364,2707.4,2707.0,5.8371659]
[1739620200369,4.46523,2707.5,2707.0,5.8371659]
[1739620200525,4.46523,2707.5,2707.0,9.5312059]
[1739620201025,4.46522,2707.5,2707.0,9.5312059]
[1739620201286,0.34379864,2707.4,2707.0,9.5312059]
[1739620201424,4.03737864,2707.4,2707.0,6.58853818]
[1739620201621,0.34379864,2707.4,2707.0,6.58853818]
[1739620202644,8.15874,2707.5,2707.0,10.28258818]
[1739620202807,8.15874,2707.5,2707.0,9.5312159]
[1739620203240,3.6936,2707.4,2707.0,5.8371659]
[1739620203409,3.69359,2707.4,2707.0,5.8371659]
[1739620203924,0.34393629,2707.3,2707.0,5.8371659]
[1739620204311,0.34393629,2707.3,2707.0,9.5311659]
[1739620205528,4.46514,2707.5,2707.0,9.5311659]
[1739620206462,4.0377986,2707.4,2707.0,5.8371659]
[1739620207347,3.69372,2707.3,2707.0,5.8371659]
[1739620207721,4.0379186,2707.3,2707.0,5.8371659]
[1739620208461,4.0379186,2707.3,2707.0,5.0182659]
[1739620208462,4.45188,2707.1,2707.0,5.0182659]
[1739620209468,4.7960786,2707.1,2707.0,5.0182659]
[1739620211468,0.3441986,2707.1,2707.0,5.0182659]
[1739620216644,4.0381786,2707.1,2707.0,5.0182659]
[1739620217374,0.3441986,2707.1,2707.0,5.0182659]
[1739620220047,0.3441986,2707.1,2707.0,5.8421659]
[1739620222785,0.3441986,2707.1,2707.0,5.0182659]
[1739620223287,4.0381786,2707.1,2707.0,5.0182659]
[1739620225075,4.89454446,2707.1,2707.0,5.0182659]
[1739620225280,4.0381786,2707.1,2707.0,5.0182659]
[1739620225803,0.3441986,2707.1,2707.0,5.0182659]
[1739620227396,4.0381786,2707.1,2707.0,5.0182659]
[1739620228186,4.8656786,2707.1,2707.0,5.0182659]
[1739620228705,5.74793246,2707.1,2707.0,5.0182659]
[1739620228913,2.05395246,2707.1,2707.0,5.0182659]
[1739620229310,1.1716986,2707.1,2707.0,5.0182659]
[1739620229514,0.3441986,2707.1,2707.0,5.0182659]
[1739620229878,0.3441986,2707.1,2707.0,5.7746659]
[1739620232578,0.3441986,2707.1,2707.0,9.4687859]
[1739620233739,0.3441986,2707.1,2707.0,5.7746659]
[1739620235815,0.3441986,2707.1,2707.0,9.4687859]
[1739620236113,0.3441986,2707.1,2707.0,10.78508949]
[1739620236795,0.3441986,2707.1,2707.0,7.09096949]
[1739620237211,0.3441986,2707.1,2707.0,10.78508949]
[1739620238116,0.3441986,2707.1,2707.0,7.09096949]
[1739620238620,0.3441986,2707.1,2707.0,10.78508949]
[1739620238843,0.8275,2707.5,2707.0,10.78508949]
[1739620239019,4.52096,2707.5,2707.0,9.4687859]
[1739620239313,4.52103,2707.5,2707.0,5.7746659]
[1739620239819,4.52103,2707.5,2707.0,9.4687559]
[1739620240014,0.8275,2707.5,2707.1,3.69395]
[1739620240325,4.52095,2707.5,2707.0,5.7746659]
[1739620240506,4.52095,2707.5,2707.0,9.4687659]
[1739620241417,3.69362,2707.4,2707.0,5.7746659]
[1739620241720,4.52095,2707.5,2707.0,5.0182659]
[1739620241721,3.69374,2707.3,2707.0,5.0182659]
[1739620242409,3.69358,2707.4,2707.0,5.0182659]
[1739620243041,3.69373,2707.3,2707.0,5.0182659]
[1739620244750,3.69398,2707.1,2707.0,5.0182659]
[1739620245957,4.52666,2707.2,2706.7,5.0182659]
[1739620246122,3.69399,2707.1,2706.7,5.0182659]
[1739620248459,5.26921522,2707.2,2706.7,5.0182659]
[1739620248862,4.52666,2707.2,2706.7,5.0182659]
[1739620249036,4.78948,2707.4,2706.9,3.69417]
[1739620249637,1.0958,2707.4,2706.9,3.69417]
[1739620249960,3.69347,2707.5,2706.9,3.69426]
[1739620250262,0.263,2707.5,2707.0,3.69401]
[1739620250463,0.263,2707.5,2707.0,4.60203556]
[1739620250769,0.263,2707.5,2707.2,0.8207]
[1739620252260,3.95645,2707.5,2707.2,0.8207]
[1739620252436,0.263,2707.5,2707.2,0.8207]
[1739620255583,1.56715305,2707.6,2707.3,3.69364]
[1739620255745,3.6929,2707.9,2707.4,4.144924]
[1739620256082,3.6929,2707.9,2707.4,3.69349]
[1739620256471,3.6929,2707.9,2707.5,0.8258]
[1739620257050,4.71904,2708.0,2707.5,4.51923]
[1739620257280,3.69293,2707.9,2707.5,0.8258]
[1739620258249,3.69293,2707.9,2707.5,1.64709]
[1739620258587,0.34526192,2707.8,2707.5,1.64709]
[1739620259486,0.34526192,2707.7,2707.5,1.64709]
[1739620260348,0.34526192,2707.7,2707.5,5.34046]
[1739620260549,0.34526192,2707.7,2707.5,5.34044]
[1739620260871,1.0262,2708.0,2707.6,0.534044]
[1739620261449,4.71905,2708.0,2707.6,0.534044]
[1739620261881,0.34517395,2707.9,2707.6,0.534044]
[1739620262785,0.34517395,2707.9,2707.6,4.227324]
[1739620263148,4.03807395,2707.9,2707.6,0.534044]
[1739620263377,0.34517395,2707.9,2707.6,0.534044]
[1739620263587,0.34517395,2707.9,2707.7,4.41301999]
[1739620263880,0.34517395,2707.8,2707.7,5.21001999]
[1739620265180,0.34517395,2707.8,2707.7,1.51693999]
[1739620265390,0.34517395,2707.8,2707.7,5.21010999]
[1739620266646,0.34517395,2707.8,2707.7,10.22837589]
[1739620269296,4.13396551,2708.1,2708.0,4.48976]
[1739620269584,4.13396551,2708.1,2708.0,10.3262949]
[1739620270155,0.005,2708.4,2708.2,3.69247]
[1739620270598,0.005,2708.4,2708.3,3.69235]
[1739620270891,0.005,2708.4,2708.3,4.48935]
[1739620271796,0.005,2708.4,2708.3,4.48935]
[1739620275490,0.005,2708.4,2708.3,18.2576159]
[1739620275693,0.005,2708.4,2708.3,20.80393723]
[1739620286803,0.005,2708.4,2708.3,23.80393723]
[1739620297729,0.005,2708.4,2708.3,25.50466613]
[1739620325326,0.005,2708.4,2708.3,24.70766613]
[1739620326557,0.005,2708.4,2708.3,25.47786613]
[1739620327226,0.7637,2709.8,2708.4,3.0]
[1739620327560,0.7637,2709.8,2709.4,3.69076]
[1739620327759,0.7637,2709.8,2709.4,5.0182659]
[1739620328063,0.7637,2709.7,2709.4,5.0182659]
[1739620328251,3.69058,2709.6,2709.4,5.0182659]
[1739620328447,4.45441,2709.5,2709.4,5.0182659]
[1739620329171,0.7637,2709.5,2709.4,5.0182659]
[1739620329976,1.1087042,2709.5,2709.4,5.0182659]
[1739620330588,4.7994142,2709.5,2709.4,5.0182659]
[1739620330791,1.1087042,2709.5,2709.4,5.0182659]
[1739620330962,4.7994142,2709.5,2709.4,5.0182659]
[1739620332366,1.1087042,2709.5,2709.4,5.0182659]
[1739620332995,4.7994142,2709.5,2709.4,5.0182659]
[1739620334559,3.69136,2709.1,2708.6,8.7101459]
[1739620334870,0.7723,2709.0,2708.6,8.7101459]
[1739620335069,0.7723,2709.0,2708.6,8.7101359]
[1739620335446,0.7723,2709.0,2708.6,12.4019859]
[1739620335646,0.7723,2709.0,2708.6,8.7101259]
[1739620335871,0.3450042,2708.9,2708.6,8.7101259]
[1739620336072,0.3450042,2708.9,2708.6,13.81228538]
[1739620336348,0.3450042,2708.9,2708.6,11.82114428]
[1739620336969,0.7723,2708.8,2708.6,5.0182659]
[1739620338406,4.4641,2708.7,2708.6,5.0182659]
[1739620338706,0.7723,2708.7,2708.6,5.0182659]
[1739620339007,1.1169715,2708.7,2708.6,5.0182659]
[1739620340905,1.1169715,2708.7,2708.6,10.4109348]
[1739620341086,0.3446715,2708.7,2708.6,6.7189948]
[1739620341287,0.3446715,2708.7,2708.6,10.4109348]
[1739620341621,0.3446715,2708.7,2708.6,8.7102059]
[1739620342081,0.7723,2708.8,2708.7,3.6918]
[1739620342479,0.7723,2709.1,2708.7,3.6918]
[1739620342700,0.7723,2709.1,2708.7,3.6917]
[1739620343179,0.7723,2709.1,2708.6,5.0182659]
[1739620343379,4.46357,2709.1,2708.6,8.7101859]
[1739620343580,0.34452052,2709.0,2708.6,8.7101859]
[1739620344510,0.34452052,2709.0,2708.7,3.69172]
[1739620344917,0.34452052,2708.9,2708.7,3.69172]
[1739620345411,0.34452052,2708.9,2708.8,3.69167]
[1739620346203,0.7594,2709.4,2708.8,0.03691313]
[1739620346513,0.7594,2709.4,2709.1,3.69118]
[1739620346714,0.7594,2709.9,2709.3,3.69099]
[1739620346878,0.263,2709.8,2709.4,3.69078]
[1739620347295,0.263,2709.8,2709.4,4.93078359]
[1739620348024,0.34449126,2709.7,2709.4,4.93078359]
[1739620348183,0.34449126,2709.7,2709.5,3.69071]
[1739620348603,0.34449126,2709.7,2709.6,3.69058]
[1739620349514,0.7695,2710.1,2709.6,3.69058]
[1739620349818,0.7695,2710.1,2709.6,4.62771936]
[1739620350288,0.7695,2710.1,2709.6,4.66462142]
[1739620350483,0.7695,2710.1,2709.6,0.93713936]
[1739620350813,0.7695,2710.1,2709.7,3.69041]
[1739620350983,0.34407851,2710.0,2709.7,3.69041]
[1739620351183,0.34407851,2710.0,2709.7,0.83182594]
[1739620351517,0.34407851,2710.0,2709.7,4.52218594]
[1739620352420,0.34407851,2709.9,2709.7,4.52218594]
[1739620353416,0.34407851,2709.9,2709.7,8.21254594]
[1739620353597,0.34407851,2709.9,2709.7,4.52218594]
[1739620353783,0.7695,2710.1,2709.8,0.95404518]
[1739620353986,0.7695,2710.1,2709.8,4.64427518]
[1739620354228,0.7695,2710.1,2709.8,9.66254108]
[1739620354601,0.7695,2710.1,2709.9,3.69013]
[1739620355103,0.7695,2710.1,2709.8,5.97231108]
[1739620355354,0.7695,2710.1,2709.9,1.0494497]
[1739620363152,0.7695,2710.1,2709.8,5.97231108]
[1739620365143,4.45947,2710.1,2709.8,5.0182659]
[1739620365645,0.7695,2710.1,2709.8,5.0182659]
[1739620365841,3.68963,2710.3,2709.8,6.71789564]
[1739620366046,4.47393,2710.3,2709.8,12.7383252]
[1739620367333,0.7843,2710.3,2709.8,12.7383252]
[1739620367648,4.47393,2710.3,2709.8,12.7383252]
[1739620371147,8.16366,2710.3,2709.8,12.7383252]
[1739620371346,4.47393,2710.3,2709.8,5.0182659]
[1739620371715,3.68985,2710.2,2709.8,5.0182659]
[1739620372115,4.47393,2710.3,2709.8,5.0182659]
[1739620372116,3.6899,2710.1,2709.8,5.0182659]
[1739620372421,3.69017,2709.9,2709.8,5.0182659]
[1739620373156,0.7843,2710.0,2709.8,5.0182659]
[1739620373331,3.69017,2709.9,2709.8,5.0182659]
[1739620375018,4.03438228,2709.9,2709.8,5.0182659]
[1739620378253,4.03438228,2709.9,2709.4,1.69962974]
[1739620378254,3.6907,2709.6,2709.4,5.0182659]
[1739620378473,0.8046,2709.5,2709.4,5.0182659]
[1739620378622,1.0666,2709.8,2709.4,5.0182659]
[1739620378957,3.69048,2709.7,2709.4,5.0182659]
[1739620379156,1.0666,2709.8,2709.4,10.40863564]
[1739620379322,0.34421228,2709.9,2709.5,4.73149356]
[1739620379518,0.34421228,2709.9,2709.6,0.7504]
[1739620379921,0.34421228,2709.8,2709.6,0.7504]
[1739620380317,0.8046,2709.7,2709.4,5.0182659]
[1739620380522,4.49512,2709.7,2709.4,5.0182659]
[1739620380720,7.3813,2709.6,2709.4,5.0182659]
[1739620380941,0.8046,2709.5,2709.4,5.0182659]
[1739620381134,4.49531,2709.5,2709.4,5.0182659]
[1739620381544,4.83952228,2709.5,2709.4,5.0182659]
[1739620383565,4.49531,2709.5,2709.4,5.0182659]
[1739620383931,4.49531,2709.5,2709.0,5.0182659]
[1739620383932,3.69098,2709.4,2709.0,5.0182659]
[1739620384128,4.83958789,2709.5,2709.0,5.0182659]
[1739620384362,3.69102,2709.3,2709.0,5.0182659]
[1739620384544,3.69087,2709.4,2709.0,5.0182659]
[1739620385664,3.69121,2709.2,2709.0,5.0182659]
[1739620387169,4.24085,2709.4,2709.0,5.0182659]
[1739620387358,3.69099,2709.3,2709.0,5.0182659]
[1739620387936,0.8046,2709.1,2709.0,5.0182659]
[1739620388131,4.49586,2709.1,2709.0,5.0182659]
[1739620388336,0.8046,2709.1,2709.0,5.0182659]
[1739620389460,4.49567,2709.3,2709.0,5.0182659]
[1739620389862,3.69113,2709.2,2709.0,5.0182659]
[1739620390569,3.69126,2709.1,2709.0,5.0182659]
[1739620391458,4.03492862,2709.1,2709.0,5.0182659]
[1739620391654,5.69259448,2709.1,2709.0,5.0182659]
[1739620392067,6.24259448,2709.1,2709.0,5.0182659]
[1739620396359,1.69826862,2709.1,2709.0,5.0182659]
[1739620396554,0.89366862,2709.1,2709.0,5.0182659]
[1739620396957,4.58492862,2709.1,2709.0,5.0182659]
[1739620397381,4.58492862,2709.1,2708.7,0.8039]
[1739620397777,4.24126,2709.1,2708.7,0.8039]
[1739620398155,4.24128,2709.1,2708.7,0.8039]
[1739620398356,3.95313,2709.2,2708.7,4.49569]
[1739620398693,7.64433,2709.2,2708.7,4.49569]
[1739620399195,3.95313,2709.2,2708.7,0.8039]
[1739620399401,0.7839,2709.3,2708.8,3.69165]
[1739620399691,3.69105,2709.3,2708.7,9.13880559]
[1739620400261,3.69105,2709.3,2708.7,9.13876559]
[1739620400481,3.69105,2709.3,2708.7,5.44703559]
[1739620400796,3.69105,2709.3,2708.7,9.13875559]
[1739620401086,3.69105,2709.3,2708.8,5.10729215]
[1739620401494,3.69105,2709.3,2708.8,1.41570215]
[1739620401660,3.69105,2709.3,2708.8,5.10733215]
[1739620402590,0.262,2709.4,2709.0,0.8039]
[1739620402790,3.95287,2709.4,2709.0,1.39870362]
[1739620403495,3.95287,2709.4,2709.0,6.41696952]
[1739620403884,0.262,2709.4,2709.0,6.41696952]
[1739620404216,3.69062,2709.6,2709.0,10.10834952]
[1739620404398,3.95262,2709.6,2709.0,13.79966952]
[1739620404605,3.95262,2709.6,2709.1,1.37996695]
[1739620404976,3.95262,2709.6,2709.1,5.07122695]
[1739620405175,3.69082,2709.5,2709.1,1.37996695]
[1739620405575,4.03462,2709.5,2709.0,9.5134859]
[1739620406199,3.69086,2709.4,2709.0,5.8221659]
[1739620407098,0.3438,2709.3,2709.0,5.8221659]
[1739620408195,0.3438,2709.3,2709.0,9.5135159]
[1739620408586,3.95262,2709.6,2709.0,9.5135159]
[1739620408784,3.95262,2709.6,2709.0,10.83402049]
[1739620409498,3.69073,2709.5,2709.0,10.83402049]
[1739620410171,3.69084,2709.5,2709.0,7.14267049]
[1739620410505,3.69084,2709.5,2709.0,10.83406049]
[1739620410714,0.34410616,2709.4,2709.0,10.83406049]
[1739620410916,0.34410616,2709.4,2709.1,1.45255905]
[1739620411085,0.34410616,2709.4,2709.1,5.14373905]
[1739620412278,7.38129,2709.6,2709.1,5.14373905]
[1739620412479,7.38129,2709.6,2709.1,3.69118]
[1739620412783,3.69062,2709.6,2709.0,7.14267049]
[1739620412993,3.69062,2709.6,2709.0,10.83406049]
[1739620413303,3.69072,2709.5,2709.0,10.83406049]
[1739620413698,0.34410426,2709.5,2709.0,10.83406049]
[1739620414002,4.03481426,2709.5,2709.0,10.83406049]
[1739620414791,0.34410426,2709.4,2709.0,10.83406049]
[1739620414993,0.34410426,2709.4,2709.1,1.45255005]
[1739620415209,0.34410426,2709.4,2709.1,6.47081595]
[1739620415912,3.69071,2709.5,2709.1,6.47081595]
[1739620416214,3.69071,2709.5,2709.1,10.16206595]
[1739620416906,5.02438,2709.7,2709.1,10.16198595]
[1739620417078,5.02438,2709.7,2709.2,1.22863905]
[1739620417274,3.69027,2709.9,2709.3,0.81980896]
[1739620417485,0.34404845,2709.6,2709.4,3.69081]
[1739620418290,0.34404845,2709.6,2709.4,8.7090759]
[1739620418687,0.34404845,2709.6,2709.4,5.0182659]
[1739620418911,4.03463845,2709.6,2709.4,5.0182659]
[1739620419255,3.69043,2709.8,2709.4,5.0182659]
[1739620419776,3.69045,2709.7,2709.4,5.0182659]
[1739620420489,3.69071,2709.5,2709.4,5.0182659]
[1739620420695,4.44611,2709.5,2709.4,5.0182659]
[1739620422812,0.7554,2709.5,2709.4,5.0182659]
[1739620422981,0.34386418,2709.5,2709.4,5.0182659]
[1739620426191,0.34386418,2709.5,2709.4,5.8278659]
[1739620426386,0.34386418,2709.5,2709.4,10.27151376]
[1739620426781,0.34386418,2709.5,2709.4,6.58066376]
[1739620427212,3.69033,2709.8,2709.4,6.58066376]
[1739620427409,0.55,2710.0,2709.4,5.8278659]
[1739620427617,7.9303,2710.0,2709.4,9.5186359]
[1739620427815,7.93027,2710.0,2709.4,9.5186359]
[1739620427999,0.55,2710.0,2709.4,9.5186359]
[1739620428521,0.34422711,2709.9,2709.5,3.69071]
[1739620428819,0.34422711,2709.9,2709.5,5.18166786]
[1739620429018,0.34422711,2709.9,2709.5,5.18159786]
[1739620429589,0.34422711,2709.9,2709.6,5.0182659]
[1739620429813,3.69001,2710.1,2709.7,0.8096]
[1739620429814,0.34422711,2709.8,2709.7,0.8096]
[1739620430125,0.34422711,2709.8,2709.7,5.8278659]
[1739620430334,0.34422711,2709.8,2709.7,7.29785628]
[1739620430620,0.34422711,2709.8,2709.7,10.98829628]
[1739620430918,0.8222,2710.2,2709.7,10.98829628]
[1739620431283,4.51198,2710.2,2709.7,10.98829628]
[1739620433025,0.34402983,2710.1,2709.7,10.98829628]
[1739620433206,0.34402983,2710.1,2709.8,1.2688409]
[1739620434411,0.34402983,2710.0,2709.8,1.2688409]
[1739620435152,0.34402983,2710.0,2709.8,9.9773868]
[1739620435332,0.34402983,2710.0,2709.9,4.49977]
[1739620435642,3.6895,2710.4,2709.9,4.49977]
[1739620435838,3.6895,2710.4,2710.0,1.24869895]
[1739620436509,3.68966,2710.3,2710.0,1.24869895]
[1739620436941,4.03347197,2710.3,2710.0,1.24869895]
[1739620437136,4.03347197,2710.3,2709.9,5.8278659]
[1739620437923,3.68981,2710.2,2709.9,5.8278659]
[1739620438348,4.03347197,2710.3,2709.9,5.8278659]
[1739620438643,3.68966,2710.3,2709.9,5.8278659]
[1739620439542,3.95143,2710.5,2709.9,9.5180159]
[1739620439750,3.68965,2710.3,2709.9,5.8278659]
[1739620440126,0.3436929,2710.2,2709.9,5.8278659]
[1739620440849,1.1080929,2710.2,2709.9,5.0182659]
[1739620441044,0.3436929,2710.2,2709.9,5.0182659]
[1739620441839,0.3436929,2710.1,2709.9,5.0182659]
[1739620443349,4.0336829,2710.1,2709.9,5.0182659]
[1739620443551,4.45443,2710.0,2709.9,5.0182659]
[1739620444863,4.45443,2710.0,2709.6,5.0182659]
[1739620445351,3.6902,2709.9,2709.6,5.0182659]
[1739620448965,0.7644,2710.0,2709.6,5.0182659]
[1739620449165,3.68994,2710.1,2709.6,8.7087859]
[1739620449385,7.37992,2710.1,2709.6,5.70163775]
[1739620449562,3.68994,2710.1,2709.6,5.70163775]
[1739620450277,0.55,2710.1,2709.6,9.39212775]
[1739620450481,4.23997,2710.1,2709.6,9.39212775]
[1739620450652,3.69004,2710.0,2709.6,5.70163775]
[1739620451983,4.2399,2710.1,2709.6,9.39220775]
[1739620453889,0.55,2710.1,2709.7,3.69044]
[1739620454060,0.55,2710.1,2709.8,4.5012]
[1739620454259,0.55,2710.1,2709.8,0.8109]
[1739620454482,4.2399,2710.1,2709.8,0.8109]
[1739620454685,3.95179,2710.2,2709.8,0.8109]
[1739620454883,4.48339,2710.4,2709.8,0.8109]
[1739620454884,4.74539,2710.4,2709.8,6.06055404]
[1739620455073,3.95159,2710.4,2709.9,3.6901]
[1739620455394,3.68959,2710.4,2709.9,3.6901]
[1739620455693,3.95146,2710.5,2709.9,7.38018]
[1739620455870,3.9448185,2710.5,2709.9,7.38018]
[1739620456071,3.9448185,2710.5,2709.9,4.83513567]
[1739620456266,3.68946,2710.5,2709.9,8.52522567]
[1739620456472,3.68946,2710.5,2710.1,0.8109]
[1739620456931,3.68946,2710.5,2710.1,5.8291659]
[1739620457303,8.43444,2710.6,2710.1,5.8291659]
[1739620457824,3.68942,2710.5,2710.1,5.8291659]
[1739620461428,4.74511,2710.6,2710.1,5.8291659]
[1739620461633,3.95131,2710.6,2710.1,10.58548606]
[1739620461828,7.64065,2710.6,2710.1,10.58548606]
[1739620462231,3.95131,2710.6,2710.1,8.59570875]
[1739620462426,2.767,2710.7,2710.2,3.68967]
[1739620462630,3.68924,2710.6,2710.2,1.59753588]
[1739620463342,10.40736,2710.7,2710.2,1.59753588]
[1739620463639,3.68894,2710.9,2710.5,1.70011269]
[1739620463840,3.95094,2710.9,2710.5,6.71837859]
[1739620464220,3.95094,2710.9,2710.5,7.84026045]
[1739620464422,3.01237077,2711.0,2710.6,0.7506]
[1739620465644,6.70109077,2711.0,2710.6,0.7506]
[1739620466312,3.01237077,2711.0,2710.6,4.43981]
[1739620466512,3.01237077,2711.0,2710.6,0.7506]
[1739620466712,3.01237077,2711.0,2710.6,1.97861205]
[1739620467124,6.70109077,2711.0,2710.6,1.97861205]
[1739620467513,3.01237077,2711.0,2710.6,1.97861205]
[1739620468935,6.70107077,2711.0,2710.6,1.97861205]
[1739620469119,3.01237077,2711.0,2710.6,1.97861205]
[1739620469623,3.01237077,2711.0,2710.7,1.23862506]
[1739620470131,3.01237077,2711.0,2710.7,2.93873775]
[1739620470653,6.70106077,2711.0,2710.7,2.93873775]
[1739620470853,3.01237077,2711.0,2710.6,0.7506]
[1739620472060,6.70104077,2711.0,2710.6,0.7506]
[1739620472460,3.01237077,2711.0,2710.6,0.7506]
[1739620472660,3.01237077,2711.0,2710.6,4.43978]
[1739620473156,3.01237077,2711.0,2710.7,1.70011269]
[1739620473356,3.01237077,2711.0,2710.7,3.18484055]
[1739620473561,3.01237077,2711.0,2710.8,0.7526]
[1739620479356,0.1469929,2711.0,2710.8,0.7526]
[1739620481398,0.1469929,2711.0,2710.9,2.45271269]
[1739620482197,0.1469929,2711.0,2710.9,6.14152269]
[1739620482350,0.1469929,2711.0,2710.9,7.27305474]
[1739620482556,0.1469929,2711.0,2710.9,3.58424474]
[1739620483758,0.1469929,2711.0,2710.9,7.27305474]
[1739620484857,0.1469929,2711.0,2710.9,3.58424474]
[1739620485057,0.1469929,2711.0,2710.9,2.45271269]
[1739620485654,2.9e-06,2711.0,2710.9,21.60990128]
[1739620487700,2.9e-06,2711.0,2710.9,21.70977968]
[1739620493733,2.9e-06,2711.0,2710.9,24.70977968]
[1739620493882,2.9e-06,2711.0,2710.9,27.64143017]
[1739620502495,2.9e-06,2711.0,2710.9,24.64143017]
[1739620504704,2.9e-06,2711.0,2710.9,23.88883017]
[1739620509643,2.9e-06,2711.0,2710.9,22.08625181]
[1739620511740,2.9e-06,2711.0,2710.9,15.46579132]
[1739620512443,2.9e-06,2711.0,2710.9,5.0182659]
[1739620512845,3.6886729,2711.0,2710.9,5.0182659]
[1739620513144,2.9e-06,2711.0,2710.9,5.0182659]
[1739620513332,3.6886729,2711.0,2710.9,5.0182659]
[1739620513540,4.5109729,2711.0,2710.9,5.0182659]
[1739620513739,0.8223029,2711.0,2710.9,5.0182659]
[1739620514650,4.5109729,2711.0,2710.9,5.0182659]
[1739620515542,0.8223029,2711.0,2710.9,5.0182659]
[1739620516852,4.5109729,2711.0,2710.9,5.0182659]
[1739620517961,3.68923,2710.6,2710.2,3.50267687]
[1739620518159,0.8223,2710.5,2710.2,3.50267687]
[1739620518318,0.8223,2710.5,2710.1,5.0182659]
[1739620518722,3.6895,2710.4,2710.1,5.0182659]
[1739620518958,0.8223,2710.3,2710.1,5.0182659]
[1739620521819,3.68976,2710.2,2710.1,5.0182659]
[1739620522024,4.51206,2710.2,2710.1,5.0182659]
[1739620527529,0.8223,2710.2,2710.1,5.0182659]
[1739620527931,4.51206,2710.2,2710.1,5.0182659]
[1739620533373,3.68999,2710.1,2709.8,5.0182659]
[1739620533763,3.68997,2710.1,2709.8,5.0182659]
[1739620535274,4.51206,2710.2,2709.8,5.0182659]
[1739620535452,3.68993,2710.1,2709.8,5.0182659]
[1739620536058,4.51206,2710.2,2709.8,5.0182659]
[1739620536245,3.68991,2710.1,2709.8,5.0182659]
[1739620536446,3.6899,2710.1,2709.8,5.0182659]
[1739620536780,3.68997,2710.1,2709.8,5.0182659]
[1739620538582,3.69017,2709.9,2709.8,5.0182659]
[1739620540082,3.69034,2709.8,2709.5,5.0182659]
[1739620540260,7.38018,2710.0,2709.5,5.0182659]
[1739620540981,3.69022,2709.9,2709.5,5.0182659]
[1739620548207,3.69017,2709.9,2709.5,5.0182659]
[1739620548394,3.69017,2709.9,2709.5,6.84499349]
[1739620552509,3.68997,2710.1,2709.7,0.8277]
[1739620553816,7.37996,2710.1,2709.7,0.8277]
[1739620554419,3.68997,2710.1,2709.7,0.8277]
[1739620555332,7.37997,2710.1,2709.7,0.8277]
[1739620555533,3.68997,2710.1,2709.7,1.96402535]
[1739620555739,3.68985,2710.2,2709.7,1.96402535]
[1739620556228,3.68992,2710.1,2709.7,1.96402535]
[1739620557731,3.68992,2710.1,2709.7,6.98229125]
[1739620558406,3.68978,2710.2,2709.7,6.98229125]
[1739620558613,3.68978,2710.2,2709.7,10.67271125]
[1739620558812,3.68978,2710.2,2709.7,6.98229125]
[1739620559536,3.6903,2709.8,2709.7,5.0182659]
[1739620562316,5.90771,2709.5,2709.4,5.0182659]
[1739620562632,4.50571,2709.5,2709.4,5.0182659]
[1739620564002,4.76771,2709.5,2709.4,5.0182659]
[1739620566474,5.31771,2709.5,2709.4,5.0182659]
[1739620566672,6.44025,2709.5,2709.1,0.2464]
[1739620566871,2.74954,2709.5,2709.1,0.2464]
[1739620567081,3.69109,2709.3,2709.1,0.2464]
[1739620568798,7.38219,2709.3,2709.1,0.2464]
[1739620568985,3.69112,2709.2,2709.1,0.2464]
[1739620569154,3.69109,2709.3,2709.1,0.2464]
[1739620569961,7.38219,2709.3,2709.1,0.2464]
[1739620570199,1.627,2709.5,2709.1,0.2464]
[1739620570488,3.69103,2709.3,2709.1,0.2464]
[1739620570696,3.69112,2709.2,2709.1,0.2464]
[1739620573326,4.48782,2709.2,2709.1,0.2464]
[1739620576393,0.7967,2709.2,2709.1,0.2464]
[1739620578246,0.7967,2709.7,2709.1,1.52556659]
[1739620578380,0.262,2709.8,2709.3,3.69091]
[1739620578716,4.48692,2709.9,2709.4,0.7527]
[1739620578942,4.74892,2709.9,2709.4,0.7527]
[1739620579235,4.74892,2709.9,2709.4,4.4435]
[1739620579588,4.74892,2709.9,2709.4,0.7527]
[1739620579894,3.69033,2709.8,2709.4,0.7527]
[1739620580491,1.533592,2709.9,2709.1,0.2464]
[1739620580691,3.69057,2709.7,2709.1,0.2464]
[1739620580901,3.69071,2709.5,2709.1,0.2464]
[1739620581921,0.7967,2709.6,2709.1,0.2464]
[1739620582230,3.69053,2709.7,2709.1,3.93761]
[1739620582413,3.69053,2709.7,2709.2,3.69112]